fUST/lending_fUST_20250312
["ID","MTS","AMOUNT","RATE_DAILY","PERIOD"]
[355960992,1741734702678,-595.41,0.00023561,2]
[355960993,1741734702688,-1467.72,0.00023561,2]
[355960994,1741734702700,-653.8,0.00023561,2]
[355960995,1741734702710,-4529.09,0.00023561,2]
[355960996,1741734702721,-1488.91,0.00023561,2]
[355960997,1741734702731,-2429.43,0.00023561,2]
[355960998,1741734702741,-621.67,0.00023561,2]
[355960999,1741734702752,-920.31,0.00023561,2]
[355961000,1741734702766,-957.86,0.00023561,2]
[355961001,1741734702776,-1110.2,0.00023561,2]
[355961002,1741734702786,-544.11,0.00023561,2]
[355961003,1741734702798,-952.07,0.00023561,2]
[355961004,1741734702808,-576.21,0.00023561,2]
[355961005,1741734702817,-738.24,0.00023561,2]
[355961006,1741734702828,-9999.0,0.00023561,2]
[355961007,1741734702839,-853.84,0.00023561,2]
[355961008,1741734702848,-544.34,0.00023561,2]
[355961009,1741734702859,-500.0,0.00023561,2]
[355961010,1741734702869,-677.1,0.00023561,2]
[355961011,1741734702879,-4842.64,0.00023561,2]
[355961012,1741734702889,-500.0,0.00023561,2]
[355961013,1741734702899,-625.63862223,0.00023561,2]
[355961014,1741734702909,-518.91,0.00023561,2]
[355961015,1741734702919,-4054.19,0.00023561,2]
[355961016,1741734702929,-866.55,0.00023561,2]
[355961017,1741734702940,-3046.16,0.00023561,2]
[355961018,1741734702949,-158.770233,0.0002358,30]
[355961020,1741734702959,-1142.28,0.00023672,2]
[355961021,1741734702970,-3772.17,0.00023672,2]
[355961022,1741734702980,-163381.79,0.00023672,2]
[355961023,1741734702990,-2671.58,0.00023672,2]
[355961024,1741734703002,-863.38,0.00023672,2]
[355961025,1741734703013,-5706.05,0.00023672,2]
[355961026,1741734703023,-664.48,0.00023672,2]
[355961027,1741734703033,-3577.81,0.00023672,2]
[355961028,1741734703043,-909.63,0.00023675,2]
[355961029,1741734703053,-500.0,0.00023675,2]
[355961030,1741734703064,-1219.12,0.00023675,2]
[355961031,1741734703074,-735.93,0.00023675,2]
[355961032,1741734703084,-613.95,0.00023675,2]
[355961033,1741734703094,-500.0,0.00023675,2]
[355961034,1741734703104,-500.0,0.00023675,2]
[355961035,1741734703114,-617.74,0.00023675,2]
[355961036,1741734703125,-1157.79,0.00023675,2]
[355961037,1741734703135,-610.48,0.00023675,2]
[355961038,1741734703145,-547.18,0.00023675,2]
[355961039,1741734703155,-301.70993806,0.00023675,2]
[355961040,1741734703166,-1437.26,0.00023675,2]
[355961041,1741734703177,-500.0,0.00023675,2]
[355961042,1741734703188,-559.53,0.00023675,2]
[355961043,1741734703200,-1184.99,0.00023675,2]
[355961044,1741734703212,-541.3,0.00023675,2]
[355961045,1741734703222,-577.95397413,0.00023675,2]
[355961046,1741734703232,-500.0,0.00023675,2]
[355961047,1741734703242,-500.0,0.00023675,2]
[355961049,1741734703253,-1059.92,0.00023675,2]
[355961050,1741734703480,-677.01,0.00023675,2]
[355961051,1741734703490,-1053.17,0.00023675,2]
[355961052,1741734703503,-1149.09,0.00023675,2]
[355961053,1741734703519,-2390.45,0.00023675,2]
[355961054,1741734703536,-673.04,0.00023675,2]
[355961055,1741734703549,-369.30784468,0.00023675,2]
[355961056,1741734703562,-500.0,0.00023675,2]
[355961057,1741734703572,-1109.37,0.00023675,2]
[355961058,1741734703583,-1057.29,0.00023675,2]
[355961059,1741734703593,-725.09,0.00023675,2]
[355961060,1741734703603,-853.84,0.00023675,2]
[355961061,1741734703612,-536.23,0.00023675,2]
[355961062,1741734703622,-346.84117132,0.00023675,2]
[355961063,1741734703632,-740.86,0.00023675,2]
[355961065,1741734703642,-500.0,0.00023675,2]
[355961066,1741734703651,-500.0,0.00023678,2]
[355961067,1741734703661,-527.54,0.00023678,2]
[355961068,1741734703670,-500.0,0.00023678,2]
[355961069,1741734703680,-504.98,0.00023678,2]
[355961070,1741734703689,-622.0,0.00023678,2]
[355961071,1741734703699,-314.14299176,0.00023678,2]
[355961072,1741734703708,-554.08,0.00023678,2]
[355961073,1741734703717,-2973.52,0.00023678,2]
[355961074,1741734703727,-601.0,0.00023678,2]
[355961075,1741734703737,-691.82,0.00023678,2]
[355961076,1741734703747,-204.84,0.00023678,2]
[355961077,1741734703760,-602.44,0.00023678,2]
[355961078,1741734703771,-641.70046736,0.00023678,2]
[355961079,1741734703781,-820.67,0.00023678,2]
[355961080,1741734703790,-793.66,0.00023678,2]
[355961081,1741734703801,-590.49,0.00023678,2]
[355961082,1741734703811,-500.0,0.00023678,2]
[355961083,1741734703820,-500.0,0.00023678,2]
[355961084,1741734703830,-535.91,0.00023678,2]
[355961085,1741734703840,-654.51,0.00023678,2]
[355961086,1741734703850,-864.43,0.00023678,2]
[355961087,1741734703859,-1196.8,0.00023678,2]
[355961088,1741734703869,-920.25,0.00023678,2]
[355961089,1741734703878,-1396.49,0.00023678,2]
[355961090,1741734703888,-548.11,0.00023678,2]
[355961091,1741734703898,-647.17,0.00023678,5]
[355961092,1741734703907,-500.0,0.00023678,2]
[355961093,1741734703917,-500.0,0.00023678,2]
[355961094,1741734703927,-627.98,0.00023678,2]
[355961095,1741734703938,-398.65932821,0.00023681,2]
[355961096,1741734703948,-500.0,0.00023681,2]
[355961097,1741734703958,-500.0,0.00023681,2]
[355961098,1741734703967,-728.06,0.00023681,2]
[355961099,1741734703977,-958.86,0.00023681,2]
[355961100,1741734703986,-1101.24,0.00023681,2]
[355961102,1741734703996,-987.72,0.00023681,2]
[355961103,1741734704005,-500.0,0.00023683,2]
[355961104,1741734704015,-1782.88,0.00023683,2]
[355961105,1741734704025,-559.98,0.00023683,2]
[355961106,1741734704035,-640.92,0.00023683,2]
[355961107,1741734704044,-578.46,0.00023683,2]
[355961108,1741734704054,-1913.04,0.00023683,2]
[355961109,1741734704063,-500.0,0.00023683,2]
[355961110,1741734704073,-888.29,0.00023683,2]
[355961111,1741734704083,-748.42,0.00023683,2]
[355961112,1741734704093,-268.67855967,0.00023771,2]
[355961113,1741734704102,-23179.53,0.00023835,2]
[355961114,1741734704111,-542.81,0.00023835,2]
[355961115,1741734704121,-500.0,0.00023835,2]
[355961116,1741734704131,-2091.01,0.00023835,2]
[355961117,1741734704140,-13103.95,0.00023835,2]
[355961118,1741734704150,-9736.43,0.00023835,2]
[355961119,1741734704159,-794.64,0.00023835,2]
[355961120,1741734704168,-705.67,0.00023835,2]
[355961121,1741734704178,-536.16,0.00023835,2]
[355961122,1741734704187,-500.0,0.00023835,2]
[355961123,1741734704197,-500.0,0.00023835,2]
[355961124,1741734704207,-576.66,0.00023835,2]
[355961125,1741734704216,-500.0,0.00023835,2]
[355961126,1741734704225,-1473.83,0.00023835,2]
[355961127,1741734704235,-570.33,0.00023835,2]
[355961128,1741734704244,-330.14488071,0.00023835,2]
[355961129,1741734704253,-500.0,0.00023835,2]
[355961130,1741734704263,-505.73,0.00023835,2]
[355961131,1741734704273,-5474.57,0.00023835,2]
[355961132,1741734704283,-3769.43,0.00023835,2]
[355961133,1741734704292,-1250.48,0.00023835,2]
[355961134,1741734704301,-2486.99,0.00023835,2]
[355961135,1741734704311,-525.77,0.00023835,2]
[355961136,1741734704320,-500.0,0.00023835,2]
[355961137,1741734704330,-601.79,0.00023835,2]
[355961138,1741734704339,-723.39,0.00023835,2]
[355961139,1741734704349,-500.0,0.00023835,2]
[355961140,1741734704359,-500.0,0.00023835,2]
[355961141,1741734704368,-500.0,0.00023835,2]
[355961142,1741734704378,-659.44,0.00023835,2]
[355961143,1741734704388,-500.0,0.00023835,2]
[355961144,1741734704397,-500.0,0.00023835,2]
[355961145,1741734704407,-1136.06,0.00023835,2]
[355961146,1741734704416,-711.23,0.00023835,2]
[355961147,1741734704426,-710.79,0.00023835,2]
[355961148,1741734704435,-500.0,0.00023835,2]
[355961149,1741734704445,-1151.95,0.00023835,2]
[355961150,1741734704455,-513.3,0.00023835,2]
[355961151,1741734704464,-714.14,0.00023835,2]
[355961152,1741734704473,-500.0,0.00023835,2]
[355961153,1741734704483,-1290.07,0.00023835,2]
[355961154,1741734704493,-4997.1,0.00023835,2]
[355961155,1741734704503,-1292.35,0.00023835,2]
[355961156,1741734704512,-1188.37,0.00023835,2]
[355961157,1741734704522,-604.97,0.00023835,2]
[355961158,1741734704532,-1994.33,0.00023835,2]
[355961159,1741734704541,-892.18,0.00023835,2]
[355961160,1741734704551,-755.13,0.00023835,2]
[355961161,1741734704560,-545.99,0.00023835,2]
[355961162,1741734704570,-1156.57,0.00023835,2]
[355961163,1741734704579,-520.62,0.00023835,2]
[355961164,1741734704588,-1451.2,0.00023835,2]
[355961165,1741734704598,-500.0,0.00023835,2]
[355961166,1741734704607,-621.0,0.00023835,2]
[355961167,1741734704616,-1784.22,0.00023835,2]
[355961168,1741734704625,-500.0,0.00023835,2]
[355961169,1741734704635,-1214.06,0.00023835,2]
[355961170,1741734704645,-868.24,0.00023835,2]
[355961171,1741734704654,-1227.37,0.00023835,2]
[355961172,1741734704664,-728.17,0.00023835,2]
[355961173,1741734704673,-1170.42,0.00023835,2]
[355961174,1741734704683,-5008.44,0.00023835,2]
[355961175,1741734704692,-1568.17,0.00023835,2]
[355961176,1741734704702,-751.65,0.00023835,2]
[355961177,1741734704712,-595.41,0.00023835,2]
[355961178,1741734704721,-1467.72,0.00023835,2]
[355961179,1741734704731,-653.8,0.00023835,2]
[355961180,1741734704741,-4529.09,0.00023835,2]
[355961181,1741734704751,-1488.91,0.00023835,2]
[355961182,1741734704765,-2429.43,0.00023835,2]
[355961183,1741734704774,-621.67,0.00023835,2]
[355961184,1741734704784,-920.31,0.00023835,2]
[355961185,1741734704794,-957.86,0.00023835,2]
[355961186,1741734704805,-1110.2,0.00023835,2]
[355961187,1741734704814,-544.11,0.00023835,2]
[355961188,1741734704824,-952.07,0.00023835,2]
[355961189,1741734704836,-738.24,0.00023835,2]
[355961190,1741734704847,-576.21,0.00023835,2]
[355961191,1741734704856,-9999.0,0.00023835,2]
[355961192,1741734704866,-853.84,0.00023835,2]
[355961193,1741734704875,-544.34,0.00023835,2]
[355961194,1741734704885,-500.0,0.00023835,2]
[355961195,1741734704895,-677.1,0.00023835,2]
[355961196,1741734704904,-4842.64,0.00023835,2]
[355961197,1741734704914,-500.0,0.00023835,2]
[355961199,1741734704924,-518.91,0.00023835,2]
[355961200,1741734704933,-4054.19,0.00023835,2]
[355961201,1741734704943,-866.55,0.00023835,2]
[355961202,1741734704952,-3046.16,0.00023835,2]
[355961203,1741734704962,-150.0,0.000239,2]
[355961204,1741734704971,-1142.28,0.00023946,2]
[355961205,1741734704980,-3772.17,0.00023946,2]
[355961206,1741734704990,-163381.79,0.00023946,2]
[355961207,1741734705001,-2671.58,0.00023946,2]
[355961208,1741734705010,-863.38,0.00023946,2]
[355961209,1741734705020,-5706.05,0.00023946,2]
[355961210,1741734705030,-664.48,0.00023946,2]
[355961211,1741734705040,-3577.81,0.00023946,2]
[355961212,1741734705050,-909.63,0.00023949,2]
[355961213,1741734705060,-500.0,0.00023949,2]
[355961214,1741734705070,-1219.12,0.00023949,2]
[355961215,1741734705080,-735.93,0.00023949,2]
[355961216,1741734705090,-613.95,0.00023949,2]
[355961217,1741734705100,-500.0,0.00023949,2]
[355961218,1741734705110,-500.0,0.00023949,2]
[355961219,1741734705119,-617.74,0.00023949,2]
[355961220,1741734705130,-1157.79,0.00023949,2]
[355961221,1741734705140,-610.48,0.00023949,2]
[355961222,1741734705149,-547.18,0.00023949,2]
[355961223,1741734705160,-1437.26,0.00023949,2]
[355961224,1741734705169,-500.0,0.00023949,2]
[355961225,1741734705178,-559.53,0.00023949,2]
[355961226,1741734705188,-1184.99,0.00023949,2]
[355961227,1741734705198,-541.3,0.00023949,2]
[355961228,1741734705208,-500.0,0.00023949,2]
[355961229,1741734705217,-500.0,0.00023949,2]
[355961230,1741734705228,-1059.92,0.00023949,2]
[355961231,1741734705237,-677.01,0.00023949,2]
[355961232,1741734705247,-1053.17,0.00023949,2]
[355961233,1741734705257,-1149.09,0.00023949,2]
[355961234,1741734705267,-2390.45,0.00023949,2]
[355961235,1741734705276,-673.04,0.00023949,2]
[355961236,1741734705286,-500.0,0.00023949,2]
[355961237,1741734705298,-1109.37,0.00023949,2]
[355961238,1741734705307,-1057.29,0.00023949,2]
[355961239,1741734705317,-725.09,0.00023949,2]
[355961240,1741734705327,-853.84,0.00023949,2]
[355961241,1741734705336,-536.23,0.00023949,2]
[355961242,1741734705346,-740.86,0.00023949,2]
[355961243,1741734705356,-500.0,0.00023949,2]
[355961244,1741734705366,-500.0,0.00023952,2]
[355961245,1741734705375,-527.54,0.00023952,2]
[355961246,1741734705385,-500.0,0.00023952,2]
[355961247,1741734705394,-504.98,0.00023952,2]
[355961248,1741734705404,-622.0,0.00023952,2]
[355961249,1741734705414,-554.08,0.00023952,2]
[355961250,1741734705424,-2973.52,0.00023952,2]
[355961251,1741734705433,-601.0,0.00023952,2]
[355961252,1741734705443,-691.82,0.00023952,2]
[355961253,1741734705452,-602.44,0.00023952,2]
[355961254,1741734705461,-820.67,0.00023952,2]
[355961255,1741734705470,-793.66,0.00023952,2]
[355961256,1741734705479,-590.49,0.00023952,2]
[355961257,1741734705489,-444.53073075,0.00023952,2]
[355961258,1741734705498,-500.0,0.00023952,2]
[355961259,1741734705507,-535.91,0.00023952,2]
[355961260,1741734705517,-654.51,0.00023952,2]
[355961261,1741734705526,-864.43,0.00023952,2]
[355961262,1741734705536,-1196.8,0.00023952,2]
[355961263,1741734705545,-920.25,0.00023952,2]
[355961264,1741734705555,-1396.49,0.00023952,2]
[355961265,1741734705565,-548.11,0.00023952,2]
[355961266,1741734705575,-647.17,0.00023952,5]
[355961267,1741734705585,-500.0,0.00023952,2]
[355961268,1741734705594,-500.0,0.00023952,2]
[355961269,1741734705604,-627.98,0.00023952,2]
[355961270,1741734705614,-500.0,0.00023955,2]
[355961271,1741734705623,-633.56103818,0.00023955,2]
[355961272,1741734705632,-728.06,0.00023955,2]
[355961273,1741734705642,-958.86,0.00023955,2]
[355961274,1741734705651,-1101.24,0.00023955,2]
[355961275,1741734705660,-987.72,0.00023955,2]
[355961276,1741734705669,-500.0,0.00023957,2]
[355961277,1741734705678,-1782.88,0.00023957,2]
[355961278,1741734705688,-559.98,0.00023957,2]
[355961279,1741734705697,-640.92,0.00023957,2]
[355961280,1741734705706,-578.46,0.00023957,2]
[355961281,1741734705716,-1913.04,0.00023957,2]
[355961282,1741734705725,-500.0,0.00023957,2]
[355961283,1741734705734,-888.29,0.00023957,2]
[355961284,1741734705743,-748.42,0.00023957,2]
[355961285,1741734705754,-1000.0,0.00024,24]
[355961286,1741734705765,-71567.0,0.00024,2]
[355961287,1741734705775,-416.66666667,0.00024,7]
[355961288,1741734705785,-2000.0,0.00024,4]
[355961289,1741734705880,-3000.0,0.0002401,2]
[355961290,1741734705890,-500.0,0.00024019,2]
[355961291,1741734705899,-170.682837,0.00024022,30]
[355961292,1741734705908,-398.0,0.00024042,2]
[355961293,1741734705917,-23179.53,0.00024109,2]
[355961294,1741734705926,-542.81,0.00024109,2]
[355961295,1741734705936,-500.0,0.00024109,2]
[355961296,1741734705945,-2091.01,0.00024109,2]
[355961297,1741734705955,-13103.95,0.00024109,2]
[355961298,1741734705964,-9736.43,0.00024109,2]
[355961299,1741734705973,-794.64,0.00024109,2]
[355961300,1741734705982,-705.67,0.00024109,2]
[355961301,1741734705992,-536.16,0.00024109,2]
[355961302,1741734706002,-500.0,0.00024109,2]
[355961303,1741734706012,-500.0,0.00024109,2]
[355961304,1741734706025,-576.66,0.00024109,2]
[355961305,1741734706035,-500.0,0.00024109,2]
[355961306,1741734706045,-1473.83,0.00024109,2]
[355961307,1741734706055,-570.33,0.00024109,2]
[355961308,1741734706065,-170.14576924,0.00024109,2]
[355961309,1741734706075,-505.73,0.00024109,2]
[355961310,1741734706085,-5474.57,0.00024109,2]
[355961311,1741734706096,-3769.43,0.00024109,2]
[355961312,1741734706106,-1250.48,0.00024109,2]
[355961313,1741734706116,-2486.99,0.00024109,2]
[355961314,1741734706126,-525.77,0.00024109,2]
[355961315,1741734706136,-500.0,0.00024109,2]
[355961316,1741734706146,-601.79,0.00024109,2]
[355961317,1741734706156,-723.39,0.00024109,2]
[355961318,1741734706166,-500.0,0.00024109,2]
[355961319,1741734706176,-500.0,0.00024109,2]
[355961320,1741734706186,-500.0,0.00024109,2]
[355961321,1741734706195,-659.44,0.00024109,2]
[355961322,1741734706205,-507.603787,0.00024109,2]
[355961323,1741734706214,-431.669637,0.00024109,2]
[355961324,1741734706223,-1136.06,0.00024109,2]
[355961325,1741734706232,-711.23,0.00024109,2]
[355961326,1741734706241,-710.79,0.00024109,2]
[355961327,1741734706250,-655.02,0.00024109,2]
[355961328,1741734706259,-655.02,0.00024109,2]
[355961329,1741734706271,-655.02,0.00024109,2]
[355961330,1741734706280,-655.02,0.00024109,2]
[355961331,1741734706289,-655.02,0.00024109,2]
[355961332,1741734706299,-655.02,0.00024109,2]
[355961333,1741734706307,-655.02,0.00024109,2]
[355961334,1741734706317,-655.02,0.00024109,2]
[355961335,1741734706326,-655.02,0.00024109,2]
[355961336,1741734706335,-655.02,0.00024109,2]
[355961337,1741734706344,-655.02,0.00024109,2]
[355961338,1741734706354,-655.02,0.00024109,2]
[355961339,1741734706363,-655.02,0.00024109,2]
[355961340,1741734706372,-655.02,0.00024109,2]
[355961341,1741734706382,-655.02,0.00024109,2]
[355961342,1741734706391,-655.02,0.00024109,2]
[355961343,1741734706400,-655.02,0.00024109,2]
[355961344,1741734706409,-655.02,0.00024109,2]
[355961345,1741734706418,-500.0,0.00024109,2]
[355961346,1741734706428,-1151.95,0.00024109,2]
[355961347,1741734706437,-513.3,0.00024109,2]
[355961348,1741734706446,-714.14,0.00024109,2]
[355961349,1741734706455,-500.0,0.00024109,2]
[355961350,1741734706465,-1290.07,0.00024109,2]
[355961351,1741734706474,-4997.1,0.00024109,2]
[355961352,1741734706484,-1292.35,0.00024109,2]
[355961353,1741734706493,-1188.37,0.00024109,2]
[355961354,1741734706502,-604.97,0.00024109,2]
[355961355,1741734706512,-1994.33,0.00024109,2]
[355961356,1741734706522,-892.18,0.00024109,2]
[355961357,1741734706531,-755.13,0.00024109,2]
[355961358,1741734706541,-545.99,0.00024109,2]
[355961359,1741734706550,-1156.57,0.00024109,2]
[355961360,1741734706560,-520.62,0.00024109,2]
[355961361,1741734706569,-1451.2,0.00024109,2]
[355961362,1741734706578,-174.88292093,0.00024109,2]
[355961363,1741734706588,-621.0,0.00024109,2]
[355961364,1741734706597,-1784.22,0.00024109,2]
[355961365,1741734706606,-500.0,0.00024109,2]
[355961366,1741734706616,-1214.06,0.00024109,2]
[355961367,1741734706626,-868.24,0.00024109,2]
[355961368,1741734706635,-1227.37,0.00024109,2]
[355961369,1741734706644,-728.17,0.00024109,2]
[355961370,1741734706653,-1170.42,0.00024109,2]
[355961371,1741734706663,-5008.44,0.00024109,2]
[355961372,1741734706673,-1568.17,0.00024109,2]
[355961373,1741734706683,-751.65,0.00024109,2]
[355961374,1741734706692,-595.41,0.00024109,2]
[355961375,1741734706702,-1467.72,0.00024109,2]
[355961376,1741734706711,-653.8,0.00024109,2]
[355961377,1741734706721,-4529.09,0.00024109,2]
[355961378,1741734706730,-1488.91,0.00024109,2]
[355961379,1741734706739,-621.67,0.00024109,2]
[355961380,1741734706750,-2429.43,0.00024109,2]
[355961381,1741734706762,-920.31,0.00024109,2]
[355961382,1741734706774,-957.86,0.00024109,2]
[355961383,1741734706784,-1110.2,0.00024109,2]
[355961384,1741734706795,-544.11,0.00024109,2]
[355961385,1741734706805,-952.07,0.00024109,2]
[355961386,1741734706816,-738.24,0.00024109,2]
[355961387,1741734706826,-576.21,0.00024109,2]
[355961388,1741734706837,-9999.0,0.00024109,2]
[355961389,1741734706847,-853.84,0.00024109,2]
[355961390,1741734706857,-544.34,0.00024109,2]
[355961391,1741734706868,-500.0,0.00024109,2]
[355961392,1741734706879,-677.1,0.00024109,2]
[355961393,1741734706890,-4842.64,0.00024109,2]
[355961394,1741734706900,-500.0,0.00024109,2]
[355961395,1741734706910,-518.91,0.00024109,2]
[355961396,1741734706920,-4054.19,0.00024109,2]
[355961397,1741734706930,-866.55,0.00024109,2]
[355961398,1741734706941,-3046.16,0.00024109,2]
[355961399,1741734706951,-152.0,0.00024164,2]
[355961400,1741734706960,-27078.87771488,0.000242,3]
[355961401,1741734706970,-27078.87771459,0.000242,3]
[355961402,1741734706980,-27078.87771459,0.000242,3]
[355961403,1741734706990,-27078.87771459,0.000242,3]
[355961404,1741734707000,-27078.87771459,0.000242,3]
[355961405,1741734707010,-27078.87771459,0.000242,3]
[355961406,1741734707023,-27078.87771459,0.000242,3]
[355961407,1741734707033,-27078.87771459,0.000242,3]
[355961408,1741734707042,-27078.87771459,0.000242,3]
[355961409,1741734707052,-27078.87771459,0.000242,3]
[355961410,1741734707062,-27078.87771459,0.000242,3]
[355961411,1741734707071,-27078.87771459,0.000242,3]
[355961412,1741734707080,-27078.87771459,0.000242,3]
[355961413,1741734707090,-1142.28,0.0002422,2]
[355961414,1741734707099,-3772.17,0.0002422,2]
[355961415,1741734707109,-163381.79,0.0002422,2]
[355961416,1741734707119,-2671.58,0.0002422,2]
[355961417,1741734707129,-863.38,0.0002422,2]
[355961418,1741734707138,-5706.05,0.0002422,2]
[355961419,1741734707147,-664.48,0.0002422,2]
[355961420,1741734707156,-3577.81,0.0002422,2]
[355961421,1741734707166,-909.63,0.00024223,2]
[355961422,1741734707175,-500.0,0.00024223,2]
[355961423,1741734707185,-1219.12,0.00024223,2]
[355961424,1741734707195,-735.93,0.00024223,2]
[355961425,1741734707204,-613.95,0.00024223,2]
[355961426,1741734707214,-500.0,0.00024223,2]
[355961427,1741734707223,-500.0,0.00024223,2]
[355961428,1741734707232,-617.74,0.00024223,2]
[355961429,1741734707242,-1157.79,0.00024223,2]
[355961430,1741734707252,-610.48,0.00024223,2]
[355961431,1741734707261,-655.02,0.00024223,2]
[355961432,1741734707274,-547.18,0.00024223,2]
[355961433,1741734707283,-1437.26,0.00024223,2]
[355961434,1741734707292,-500.0,0.00024223,2]
[355961435,1741734707301,-559.53,0.00024223,2]
[355961436,1741734707311,-1184.99,0.00024223,2]
[355961437,1741734707320,-541.3,0.00024223,2]
[355961438,1741734707330,-477.21917633,0.00024223,2]
[355961439,1741734707339,-500.0,0.00024223,2]
[355961440,1741734707349,-1059.92,0.00024223,2]
[355961441,1741734707358,-677.01,0.00024223,2]
[355961442,1741734707368,-1053.17,0.00024223,2]
[355961443,1741734707378,-1149.09,0.00024223,2]
[355961444,1741734707388,-2390.45,0.00024223,2]
[355961445,1741734707397,-673.04,0.00024223,2]
[355961446,1741734707408,-457.57253437,0.00024223,2]
[355961447,1741734707417,-1109.37,0.00024223,2]
[355961448,1741734707427,-1057.29,0.00024223,2]
[355961449,1741734707436,-725.09,0.00024223,2]
[355961450,1741734707446,-853.84,0.00024223,2]
[355961451,1741734707456,-536.23,0.00024223,2]
[355961452,1741734707466,-740.86,0.00024223,2]
[355961453,1741734707475,-500.0,0.00024223,2]
[355961454,1741734707484,-500.0,0.00024226,2]
[355961455,1741734707494,-527.54,0.00024226,2]
[355961456,1741734707503,-500.0,0.00024226,2]
[355961457,1741734707512,-504.98,0.00024226,2]
[355961458,1741734707524,-622.0,0.00024226,2]
[355961459,1741734707533,-554.08,0.00024226,2]
[355961460,1741734707542,-2973.52,0.00024226,2]
[355961461,1741734707552,-601.0,0.00024226,2]
[355961462,1741734707561,-691.82,0.00024226,2]
[355961463,1741734707571,-602.44,0.00024226,2]
[355961464,1741734707580,-820.67,0.00024226,2]
[355961465,1741734707589,-793.66,0.00024226,2]
[355961466,1741734707599,-590.49,0.00024226,2]
[355961467,1741734707609,-500.0,0.00024226,2]
[355961468,1741734707619,-535.91,0.00024226,2]
[355961469,1741734707629,-654.51,0.00024226,2]
[355961470,1741734707639,-864.43,0.00024226,2]
[355961471,1741734707648,-1196.8,0.00024226,2]
[355961472,1741734707658,-920.25,0.00024226,2]
[355961473,1741734707667,-1396.49,0.00024226,2]
[355961474,1741734707677,-548.11,0.00024226,2]
[355961475,1741734707686,-647.17,0.00024226,5]
[355961476,1741734707697,-500.0,0.00024226,2]
[355961477,1741734707707,-500.0,0.00024226,2]
[355961478,1741734707717,-627.98,0.00024226,2]
[355961479,1741734707726,-500.0,0.00024229,2]
[355961480,1741734707736,-728.06,0.00024229,2]
[355961481,1741734707746,-958.86,0.00024229,2]
[355961482,1741734707757,-1101.24,0.00024229,2]
[355961483,1741734707772,-987.72,0.00024229,2]
[355961484,1741734707782,-500.0,0.00024231,2]
[355961485,1741734707792,-1782.88,0.00024231,2]
[355961486,1741734707803,-559.98,0.00024231,2]
[355961487,1741734707814,-640.92,0.00024231,2]
[355961488,1741734707824,-578.46,0.00024231,2]
[355961489,1741734707834,-1913.04,0.00024231,2]
[355961490,1741734707845,-500.0,0.00024231,2]
[355961491,1741734707855,-888.29,0.00024231,2]
[355961492,1741734707864,-748.42,0.00024231,2]
[355961493,1741734707874,-150.0,0.00024328,7]
[355961494,1741734707884,-150.0,0.00024328,7]
[355961495,1741734707893,-450.3327509,0.00024345,2]
[355961496,1741734707904,-356.9896343,0.00024345,2]